bitfinex/quotes_BTCUSD_20241203
["timestamp","ask_amount","ask_price","bid_price","bid_amount"]
[1733266661377,0.207796,96249.0,96235.0,0.10471259]
[1733266661606,0.415592,96249.0,96235.0,0.10471259]
[1733266661843,0.207804,96245.0,96235.0,0.10471259]
[1733266663328,0.207811,96241.0,96235.0,0.10471259]
[1733266663480,0.207811,96241.0,96236.0,0.0179858]
[1733266663884,0.207813,96240.0,96231.0,0.0009963]
[1733266664083,0.0020618,96254.0,96231.0,0.0009963]
[1733266664084,0.207826,96234.0,96231.0,0.0009963]
[1733266664299,0.207826,96234.0,96230.0,0.00017653]
[1733266664514,0.415653,96234.0,96230.0,0.00017653]
[1733266665523,0.207826,96234.0,96230.0,0.00217653]
[1733266666164,0.415653,96234.0,96230.0,0.00217653]
[1733266666570,0.207826,96234.0,96230.0,0.00417653]
[1733266667598,0.415653,96234.0,96230.0,0.00417653]
[1733266671618,0.0020618,96254.0,96233.0,0.0794]
[1733266671878,0.00774067,96253.0,96242.0,0.15]
[1733266672118,0.0020618,96254.0,96242.0,0.15]
[1733266672362,0.00774067,96253.0,96242.0,0.357809]
[1733266672582,0.0020618,96254.0,96242.0,0.15]
[1733266672583,0.00774067,96252.0,96242.0,0.15]
[1733266673093,0.00774067,96251.0,96241.0,0.407809]
[1733266673301,0.00774067,96253.0,96243.0,0.207807]
[1733266673521,0.00774067,96252.0,96242.0,0.0765625]
[1733266673723,0.00774067,96251.0,96235.0,0.15]
[1733266673857,0.207792,96250.0,96237.0,0.15]
[1733266674087,0.207792,96250.0,96239.0,0.15]
[1733266674300,0.207792,96250.0,96241.0,0.15]
[1733266674945,0.2098458,96254.0,96241.0,0.15]
[1733266675155,0.207787,96252.0,96241.0,0.15]
[1733266675364,0.207792,96250.0,96241.0,0.152]
[1733266675558,0.00775047,96249.0,96242.0,0.0774652]
[1733266675786,0.00775047,96248.0,96242.0,0.0774652]
[1733266675993,0.207791,96251.0,96242.0,0.0774652]
[1733266676196,0.00775337,96250.0,96242.0,0.0774652]
[1733266676409,0.00775664,96249.0,96243.0,0.08521172]
[1733266676623,0.00775664,96248.0,96243.0,0.08521172]
[1733266676825,0.00775664,96247.0,96243.0,0.08521172]
[1733266677040,0.207791,96251.0,96243.0,0.08521172]
[1733266677258,0.00776036,96250.0,96243.0,0.08521172]
[1733266677451,0.00776036,96249.0,96244.0,0.06510418]
[1733266677666,0.00776036,96248.0,96244.0,0.06510418]
[1733266677864,0.00776036,96247.0,96244.0,0.06510418]
[1733266678099,0.00776036,96246.0,96244.0,0.06510418]
[1733266678278,0.207791,96251.0,96244.0,0.06510418]
[1733266678279,0.00776478,96245.0,96244.0,0.06510418]
[1733266678492,0.00776478,96245.0,96244.0,0.76510418]
[1733266678905,0.00776478,96245.0,96244.0,0.76910418]
[1733266679315,0.00776478,96245.0,96244.0,0.76810418]
[1733266679516,0.00776478,96245.0,96244.0,0.77310418]
[1733266679728,0.00776478,96245.0,96244.0,0.07310418]
[1733266680557,0.00776478,96245.0,96244.0,0.07010418]
[1733266680783,0.00776478,96245.0,96244.0,0.07410418]
[1733266681198,0.00776478,96245.0,96244.0,0.16571771]
[1733266681403,0.00776478,96245.0,96244.0,0.07410418]
[1733266681607,0.00776478,96245.0,96244.0,0.16597254]
[1733266681817,0.00776478,96245.0,96244.0,0.16197254]
[1733266682216,0.00776478,96245.0,96244.0,0.06910418]
[1733266682447,0.00776478,96245.0,96244.0,0.07510418]
[1733266682676,0.00776478,96245.0,96244.0,0.20704016]
[1733266682903,0.00776478,96245.0,96244.0,0.77510418]
[1733266683200,0.00776478,96245.0,96244.0,0.91304016]
[1733266683434,0.00776478,96245.0,96244.0,0.99877508]
[1733266683665,0.00776478,96245.0,96244.0,0.77110418]
[1733266683895,0.00776478,96245.0,96244.0,0.77510418]
[1733266684354,0.00776478,96245.0,96244.0,0.77110418]
[1733266685099,0.00776478,96245.0,96244.0,0.77510418]
[1733266685564,0.00776478,96245.0,96244.0,1.05218526]
[1733266685804,0.00776478,96245.0,96244.0,0.77510418]
[1733266686530,0.00776478,96245.0,96244.0,0.07510418]
[1733266686753,0.00776478,96245.0,96244.0,0.48502835]
[1733266687232,0.00776478,96245.0,96244.0,0.07510418]
[1733266687677,0.00776478,96245.0,96244.0,0.07110418]
[1733266687898,0.00776478,96245.0,96244.0,0.07510418]
[1733266688315,0.00776478,96245.0,96244.0,0.07110418]
[1733266688568,0.00862628,96245.0,96244.0,0.07510418]
[1733266689671,0.00864402,96245.0,96244.0,0.07510418]
[1733266690331,0.00864402,96245.0,96244.0,0.06510418]
[1733266690802,0.00864402,96245.0,96244.0,0.06910418]
[1733266691212,0.00864402,96245.0,96244.0,0.06510418]
[1733266691424,0.00864402,96245.0,96244.0,0.07010418]
[1733266691767,0.00864402,96245.0,96244.0,0.38362671]
[1733266692007,0.00864402,96245.0,96244.0,0.07010418]
[1733266692205,0.00864402,96245.0,96244.0,0.07610418]
[1733266692408,0.00864402,96245.0,96244.0,0.07010418]
[1733266692808,0.00864402,96245.0,96244.0,0.07910418]
[1733266694049,0.00864402,96245.0,96244.0,0.06719047]
[1733266694716,0.00864402,96245.0,96244.0,0.00228424]
[1733266696695,0.00864509,96245.0,96244.0,0.00228424]
[1733266697103,0.00864504,96245.0,96244.0,0.00228424]
[1733266700450,0.00864504,96245.0,96244.0,0.28194672]
[1733266700653,0.00864504,96245.0,96244.0,0.00228424]
[1733266701024,0.0008615,96245.0,96244.0,0.00228424]
[1733266701224,0.00865188,96245.0,96244.0,0.00228424]
[1733266702063,0.00865188,96245.0,96244.0,0.07690432]
[1733266702263,0.00865188,96245.0,96244.0,0.23534372]
[1733266703245,0.00865188,96245.0,96244.0,0.00228424]
[1733266703937,0.00865645,96245.0,96244.0,0.00228424]
[1733266704589,0.0008615,96245.0,96244.0,0.00228424]
[1733266705480,0.0008615,96245.0,96244.0,0.39290183]
[1733266705706,0.0008615,96245.0,96244.0,0.64573329]
[1733266711512,0.0008615,96245.0,96244.0,1.34745949]
[1733266711948,0.0008615,96245.0,96244.0,0.64745949]
[1733266713020,0.0008615,96245.0,96244.0,1.34745949]
[1733266715175,0.0008615,96245.0,96244.0,1.62707979]
[1733266716284,0.0008615,96245.0,96244.0,1.34745949]
[1733266716495,0.0008615,96245.0,96244.0,0.64745949]
[1733266717351,0.0008615,96245.0,96244.0,1.34745949]
[1733266720243,0.0008615,96245.0,96244.0,1.34517525]
[1733266720464,0.0008615,96245.0,96244.0,1.35417525]
[1733266721751,0.0008615,96245.0,96244.0,1.35917525]
[1733266721964,0.0008615,96245.0,96244.0,1.40707525]
[1733266722182,0.0008615,96245.0,96244.0,1.40207525]
[1733266722399,0.0008615,96245.0,96244.0,0.70207525]
[1733266722618,0.0008615,96245.0,96244.0,0.70707525]
[1733266724180,0.0008615,96245.0,96244.0,1.12037526]
[1733266724432,0.0008615,96245.0,96244.0,0.70707525]
[1733266724653,0.0008615,96245.0,96244.0,1.12022789]
[1733266724862,0.0008615,96245.0,96244.0,0.70707525]
[1733266725325,0.0008615,96245.0,96244.0,1.40707525]
[1733266726441,0.0008615,96245.0,96244.0,1.82011834]
[1733266726704,0.0008615,96245.0,96244.0,1.40707525]
[1733266728241,0.0008615,96245.0,96244.0,1.82006988]
[1733266728461,0.0008615,96245.0,96244.0,1.40707525]
[1733266729172,0.0008615,96245.0,96244.0,1.8200418]
[1733266729823,0.0008615,96245.0,96244.0,1.40707525]
[1733266730913,0.0008615,96245.0,96244.0,1.8200418]
[1733266731129,0.0008615,96245.0,96244.0,1.40707525]
[1733266732675,0.0008615,96245.0,96244.0,1.8200418]
[1733266733115,0.0008615,96245.0,96244.0,1.40707525]
[1733266733770,0.0008615,96245.0,96244.0,1.8200418]
[1733266734247,0.0008615,96245.0,96244.0,1.40707525]
[1733266735153,0.0008615,96245.0,96244.0,0.70707525]
[1733266738064,0.0008615,96245.0,96244.0,1.40707525]
[1733266739804,0.0008615,96245.0,96244.0,1.15137025]
[1733266740020,0.0008615,96245.0,96244.0,0.97043879]
[1733266740681,0.0008615,96245.0,96244.0,1.2501554]
[1733266740897,0.0020618,96254.0,96245.0,0.00135495]
[1733266741113,0.0020618,96254.0,96246.0,0.59221621]
[1733266741357,0.0020618,96254.0,96247.0,0.10283146]
[1733266741571,0.0020618,96254.0,96253.0,0.23309914]
[1733266741791,0.0020618,96254.0,96253.0,0.10471259]
[1733266742259,0.0020618,96254.0,96253.0,1.03781213]
[1733266742478,0.00985019,96254.0,96253.0,0.80471259]
[1733266742692,0.0020618,96254.0,96253.0,0.90754405]
[1733266742941,0.00985035,96254.0,96253.0,0.90754405]
[1733266743149,0.00985035,96254.0,96253.0,0.91154405]
[1733266743376,0.00985044,96254.0,96253.0,1.144656]
[1733266743601,0.00985044,96254.0,96253.0,0.91154405]
[1733266744021,0.00070685,96254.0,96253.0,0.91154405]
[1733266744229,0.00070685,96254.0,96253.0,0.21154405]
[1733266744412,0.00070685,96254.0,96253.0,0.10871259]
[1733266744678,0.00849604,96254.0,96253.0,0.10871259]
[1733266744883,0.00849604,96254.0,96253.0,0.11171259]
[1733266745305,0.00070685,96254.0,96253.0,0.11171259]
[1733266745734,0.49054285,96262.0,96253.0,0.11171259]
[1733266745967,0.00778934,96261.0,96259.0,0.18648919]
[1733266746183,0.21555934,96260.0,96258.0,0.18648919]
[1733266746400,0.20777,96260.0,96259.0,0.13988488]
[1733266746616,0.21555955,96260.0,96259.0,0.13988488]
[1733266746851,0.21555955,96260.0,96259.0,0.21194923]
[1733266747088,0.21555955,96260.0,96259.0,0.07206229]
[1733266747314,0.42333055,96260.0,96257.0,0.13988694]
[1733266747533,0.207774,96258.0,96257.0,0.13988694]
[1733266747749,0.21556355,96258.0,96256.0,0.18648919]
[1733266747961,0.20777,96260.0,96257.0,0.0577738]
[1733266748181,0.20777,96260.0,96259.0,0.18651452]
[1733266748367,0.21555953,96260.0,96259.0,0.18651452]
[1733266749042,0.21555953,96260.0,96259.0,0.18751452]
[1733266749752,0.21551953,96260.0,96259.0,0.18651452]
[1733266749972,0.21551953,96260.0,96259.0,0.24986824]
[1733266750435,0.21551953,96260.0,96259.0,0.06435372]
[1733266750892,0.21551953,96260.0,96259.0,0.001]
[1733266751346,0.21551953,96260.0,96259.0,0.002]
[1733266751577,0.21551953,96260.0,96259.0,0.18858136]
[1733266751793,0.21551953,96260.0,96259.0,0.002]
[1733266752009,0.21551953,96260.0,96259.0,0.14194685]
[1733266752276,0.21562939,96260.0,96259.0,0.002]
[1733266752493,0.20783986,96260.0,96259.0,0.002]
[1733266752713,0.2156304,96260.0,96259.0,0.002]
[1733266752946,0.2156304,96260.0,96259.0,0.1885884]
[1733266753164,0.2156304,96260.0,96259.0,0.002]
[1733266753376,0.2156304,96260.0,96259.0,0.18857581]
[1733266753616,0.2156304,96260.0,96259.0,0.002]
[1733266753617,0.0079004,96260.0,96259.0,0.002]
[1733266753847,0.0079004,96260.0,96259.0,0.23511149]
[1733266754082,0.0079004,96260.0,96259.0,0.002]
[1733266755075,0.0079004,96260.0,96259.0,0.18858302]
[1733266755298,0.0079004,96260.0,96259.0,0.002]
[1733266755537,0.0079004,96260.0,96259.0,0.18858625]
[1733266755741,0.0079004,96260.0,96259.0,0.002]
[1733266756040,0.0079005,96260.0,96259.0,0.18860113]
[1733266756289,0.0079005,96260.0,96259.0,0.18860195]
[1733266757077,0.0079005,96260.0,96259.0,0.23511149]
[1733266757770,0.0079005,96260.0,96259.0,0.002]
[1733266758004,0.0079005,96260.0,96259.0,0.18865009]
[1733266758482,0.0079005,96260.0,96259.0,0.18865831]
[1733266758710,0.0079005,96260.0,96259.0,0.002]
[1733266759183,0.0079005,96260.0,96259.0,0.1420013]
[1733266759425,0.00010986,96260.0,96259.0,0.1420013]
[1733266759721,0.00790127,96260.0,96259.0,0.1420013]
[1733266759975,0.00790127,96260.0,96259.0,0.1437271]
[1733266760200,0.00876417,96260.0,96259.0,0.19451254]
[1733266760560,0.00876417,96260.0,96259.0,0.0037258]
[1733266760791,0.00876417,96260.0,96259.0,0.1437271]
[1733266762174,0.00876417,96260.0,96259.0,0.0037258]
[1733266762898,0.13746417,96260.0,96259.0,0.0037258]
[1733266763121,0.1374642,96260.0,96259.0,0.0027258]
[1733266763629,0.1374642,96260.0,96259.0,0.0047258]
[1733266763843,0.1374642,96260.0,96259.0,0.0017258]
[1733266764073,0.1374642,96260.0,96259.0,0.0037258]
[1733266764550,0.1374642,96260.0,96259.0,0.0017258]
[1733266764844,0.1388067,96260.0,96259.0,0.0017258]
[1733266765088,0.14171376,96260.0,96259.0,0.0017258]
[1733266765749,0.24642635,96260.0,96259.0,0.0017258]
[1733266766470,0.23863491,96260.0,96259.0,0.0017258]
[1733266766720,0.24642059,96260.0,96259.0,0.0017258]
[1733266770055,0.2464161,96260.0,96259.0,0.0017258]
[1733266770554,0.5967322,96260.0,96259.0,0.0017258]
[1733266770810,0.5967322,96260.0,96259.0,8e-07]
[1733266771268,0.6291497,96260.0,96259.0,8e-07]
[1733266771500,0.5937322,96260.0,96259.0,8e-07]
[1733266771732,0.7967322,96260.0,96259.0,8e-07]
[1733266771962,0.8291411,96260.0,96259.0,8e-07]
[1733266772982,0.8351411,96260.0,96259.0,8e-07]
[1733266773449,0.8351411,96260.0,96244.0,0.0017262]
[1733266773450,0.1267,96245.0,96244.0,0.0017262]
[1733266773677,0.23919378,96245.0,96244.0,0.0017262]
[1733266774860,0.24019378,96245.0,96244.0,0.0017262]
[1733266775632,0.24419378,96245.0,96244.0,0.0017262]
[1733266776808,0.23419378,96245.0,96244.0,0.0017262]
[1733266777825,0.207861,96218.0,96217.0,0.07615993]
[1733266778228,0.207861,96218.0,96217.0,0.07516013]
[1733266778705,0.207853,96222.0,96217.0,0.07516013]
[1733266778920,0.207846,96225.0,96217.0,0.07516013]
[1733266779125,0.207846,96225.0,96217.0,0.07525306]
[1733266779288,0.1177,96245.0,96217.0,0.07525306]
[1733266779442,0.1177,96245.0,96217.0,0.17996565]
[1733266779443,0.207807,96243.0,96217.0,0.17996565]
[1733266779645,0.001,96218.0,96217.0,0.11380552]
[1733266779856,0.00776414,96241.0,96217.0,0.10480552]
[1733266780108,0.207837,96229.0,96218.0,0.16158089]
[1733266780718,0.207837,96229.0,96219.0,0.0826]
[1733266781125,0.207839,96228.0,96219.0,0.0826]
[1733266782196,0.207846,96226.0,96219.0,0.0826]
[1733266782410,0.207846,96226.0,96219.0,0.0876]
[1733266783245,0.207846,96226.0,96219.0,0.0856]
[1733266783443,0.207846,96226.0,96219.0,0.0916]
[1733266783851,0.207846,96226.0,96219.0,0.0886]
[1733266784168,0.207846,96225.0,96219.0,0.0926]
[1733266784392,0.207846,96225.0,96219.0,0.0943258]
[1733266784730,0.207846,96226.0,96219.0,0.0943258]
[1733266784927,0.207846,96226.0,96219.0,0.0903258]
[1733266785231,0.207846,96226.0,96219.0,0.0843258]
[1733266785692,0.207846,96226.0,96219.0,0.0903258]
[1733266785931,0.207846,96226.0,96219.0,0.0843258]
[1733266786167,0.207846,96226.0,96219.0,0.0903258]
[1733266786385,0.20784,96228.0,96219.0,0.0943258]
[1733266786606,0.207848,96225.0,96219.0,0.0943258]
[1733266786835,0.207848,96225.0,96219.0,0.0903258]
[1733266787721,0.20784,96228.0,96219.0,0.0883258]
[1733266787940,0.207841,96227.0,96219.0,0.0883258]
[1733266788152,0.207841,96227.0,96219.0,0.0903258]
[1733266788589,0.207844,96226.0,96219.0,0.0903258]
[1733266788812,0.00174738,96249.0,96219.0,0.0843258]
[1733266789041,0.20785,96224.0,96219.0,0.11629017]
[1733266789249,0.20785,96224.0,96219.0,0.0893258]
[1733266789449,0.20785,96224.0,96219.0,0.0883258]
[1733266789662,0.20785,96224.0,96219.0,0.0943258]
[1733266790080,0.20785,96224.0,96219.0,0.0903258]
[1733266790350,0.20785,96224.0,96219.0,0.0943258]
[1733266790568,0.207843,96227.0,96219.0,0.0943258]
[1733266790999,0.207843,96227.0,96219.0,0.0883258]
[1733266791212,0.001,96224.0,96219.0,0.0953258]
[1733266791417,0.207843,96227.0,96219.0,0.0883258]
[1733266791625,0.415686,96227.0,96219.0,0.0883258]
[1733266792271,0.415686,96227.0,96219.0,0.0933258]
[1733266792470,0.415686,96227.0,96219.0,0.0893258]
[1733266792673,0.20785,96224.0,96219.0,0.0893258]
[1733266792879,0.207843,96227.0,96219.0,0.0893258]
[1733266793293,0.207843,96227.0,96219.0,0.0923258]
[1733266793493,0.415686,96227.0,96219.0,0.0923258]
[1733266793914,0.415686,96227.0,96219.0,0.0873258]
[1733266794148,0.001,96224.0,96219.0,0.0943258]
[1733266794355,0.207846,96225.0,96219.0,0.0873258]
[1733266794761,0.207846,96225.0,96219.0,0.0923258]
[1733266794965,0.207846,96225.0,96219.0,0.0873258]
[1733266795674,0.001,96224.0,96219.0,0.0913258]
[1733266795701,0.001,96224.0,96219.0,0.0843258]
[1733266795908,0.20885,96224.0,96219.0,0.0943258]
[1733266796350,0.001,96224.0,96220.0,0.10471259]
[1733266796586,0.001,96224.0,96221.0,0.1329]
[1733266796814,0.001,96224.0,96223.0,0.10471259]
[1733266797043,0.207794,96249.0,96234.0,0.207826]
[1733266797262,0.00027757,96257.0,96236.0,0.0497]
[1733266797483,0.207779,96256.0,96239.0,0.0832]
[1733266797723,0.207779,96256.0,96241.0,0.0763]
[1733266797973,0.207779,96256.0,96242.0,0.10471259]
[1733266798234,0.00174738,96259.0,96245.0,0.0763]
[1733266798494,0.00174738,96259.0,96246.0,0.15291259]
[1733266798724,0.00026189,96259.0,96246.0,0.15291259]
[1733266798950,0.00026189,96259.0,96247.0,0.0755]
[1733266799170,0.207774,96258.0,96248.0,0.12755385]
[1733266799630,0.00026189,96259.0,96248.0,0.12755385]
[1733266799858,0.00026189,96259.0,96248.0,0.12764678]
[1733266800078,0.207774,96258.0,96248.0,0.22066248]
[1733266800321,0.00026189,96259.0,96249.0,0.0930157]
[1733266800322,0.207787,96253.0,96249.0,0.0930157]
[1733266800539,0.00026189,96257.0,96248.0,0.10680552]
[1733266800785,0.00174738,96253.0,96248.0,0.19982122]
[1733266801013,0.00174738,96253.0,96249.0,0.06490762]
[1733266801727,0.00174738,96253.0,96249.0,0.06890762]
[1733266802037,0.00174738,96253.0,96249.0,0.06490762]
[1733266802256,0.00174738,96253.0,96248.0,0.1031746]
[1733266802467,0.00174738,96253.0,96248.0,0.19619912]
[1733266802682,0.20804089,96256.0,96248.0,0.19419912]
[1733266802889,0.207769,96261.0,96249.0,0.003]
[1733266803095,0.207772,96259.0,96249.0,0.09602452]
[1733266803323,0.207772,96259.0,96250.0,0.0646485]
[1733266804000,0.207772,96259.0,96249.0,0.09302452]
[1733266804001,0.207772,96259.0,96248.0,0.16284762]
[1733266804228,0.207772,96259.0,96248.0,0.15784762]
[1733266804447,0.207772,96259.0,96250.0,0.004]
[1733266804978,0.207772,96259.0,96250.0,0.04124114]
[1733266805437,0.207769,96261.0,96250.0,0.04324114]
[1733266805660,0.00201769,96263.0,96251.0,0.10471259]
[1733266805896,0.207749,96270.0,96251.0,0.10655143]
[1733266806126,0.207762,96264.0,96252.0,0.0793]
[1733266806354,0.207749,96270.0,96253.0,0.16501315]
[1733266806355,0.207759,96266.0,96253.0,0.16501315]
[1733266806795,0.207749,96270.0,96254.0,0.00183872]
[1733266807047,0.207741,96274.0,96256.0,0.1307]
[1733266807334,0.00056354,96260.0,96257.0,0.18945114]
[1733266807563,0.00056354,96260.0,96257.0,0.18761259]
[1733266807782,0.00056354,96260.0,96257.0,0.18945115]
[1733266809181,0.00056354,96260.0,96257.0,0.18761259]
[1733266809416,0.207772,96259.0,96257.0,0.0829]
[1733266809661,0.415544,96259.0,96257.0,0.702]
[1733266810158,0.415544,96259.0,96257.0,0.005]
[1733266810602,0.415544,96259.0,96257.0,0.002]
[1733266811083,0.06238675,96258.0,96257.0,0.004]
[1733266811319,0.2267,96258.0,96257.0,0.004]
[1733266811561,0.2744,96258.0,96257.0,0.006]
[1733266812063,0.37911259,96258.0,96257.0,0.004]
[1733266812287,0.57911259,96258.0,96257.0,0.004]
[1733266812551,0.57911259,96258.0,96248.0,9.293e-05]
[1733266812552,0.0788,96255.0,96248.0,9.293e-05]
[1733266812792,0.207794,96249.0,96248.0,9.293e-05]
[1733266813471,0.28770296,96249.0,96248.0,9.293e-05]
[1733266813931,0.357794,96249.0,96248.0,9.293e-05]
[1733266815223,0.46250659,96249.0,96248.0,9.293e-05]
[1733266815649,0.46550659,96249.0,96248.0,9.293e-05]
[1733266815859,0.47150659,96249.0,96248.0,9.293e-05]
[1733266816949,0.366794,96249.0,96248.0,9.293e-05]
[1733266817180,0.360794,96249.0,96248.0,9.293e-05]
[1733266817414,0.366794,96249.0,96248.0,9.293e-05]
[1733266817685,0.360794,96249.0,96248.0,9.293e-05]
[1733266817920,0.357794,96249.0,96248.0,9.293e-05]
[1733266818152,0.357794,96249.0,96248.0,0.00181893]
[1733266818362,0.360794,96249.0,96248.0,0.00181893]
[1733266818790,0.357794,96249.0,96248.0,0.00181893]
[1733266819056,0.360794,96249.0,96248.0,0.00181893]
[1733266819268,0.365794,96249.0,96248.0,0.00181893]
[1733266819482,0.357794,96249.0,96248.0,0.00181893]
[1733266819921,0.364794,96249.0,96248.0,0.00181893]
[1733266820374,0.369794,96249.0,96248.0,0.00181893]
[1733266820592,0.359794,96249.0,96248.0,0.00181893]
[1733266821037,0.213794,96249.0,96248.0,0.00181893]
[1733266821258,0.211794,96249.0,96248.0,0.00181893]
[1733266821524,0.214794,96249.0,96248.0,0.00181893]
[1733266822182,0.207794,96249.0,96248.0,0.00181893]
[1733266822615,0.209794,96249.0,96248.0,0.00181893]
[1733266822867,0.207794,96249.0,96248.0,0.00181893]
[1733266825208,0.207794,96249.0,96248.0,0.00281893]
[1733266825420,0.207794,96249.0,96248.0,0.00481893]
[1733266825634,0.207794,96249.0,96248.0,0.00281893]
[1733266826017,0.207794,96249.0,96248.0,0.00481893]
[1733266827441,0.22579074,96249.0,96248.0,0.00481893]
[1733266828300,0.22579074,96249.0,96248.0,0.00381893]
[1733266828522,0.22879074,96249.0,96248.0,0.00381893]
[1733266828868,0.22879074,96249.0,96248.0,0.00181893]
[1733266829088,0.22579074,96249.0,96248.0,0.00181893]
[1733266829322,0.23179074,96249.0,96248.0,0.00181893]
[1733266829555,0.23479074,96249.0,96248.0,0.00181893]
[1733266829769,0.24079074,96249.0,96248.0,0.00181893]
[1733266830195,0.22879074,96249.0,96248.0,0.00181893]
[1733266830412,0.23479074,96249.0,96248.0,0.00181893]
[1733266831033,0.23179074,96249.0,96248.0,0.00181893]
[1733266831245,0.22579074,96249.0,96248.0,0.00181893]
[1733266831449,0.22879074,96249.0,96248.0,0.00181893]
[1733266831876,0.22579074,96249.0,96248.0,0.00181893]
[1733266832310,0.22779074,96249.0,96248.0,0.00181893]
[1733266832797,0.23179074,96249.0,96248.0,0.00181893]
[1733266834043,0.33650333,96249.0,96248.0,0.00181893]
[1733266834382,0.34427056,96249.0,96248.0,0.00181893]
[1733266835493,0.61957056,96249.0,96248.0,0.00181893]
[1733266835739,1.01487056,96249.0,96248.0,9.3e-07]
[1733266835990,1.0472395,96249.0,96248.0,9.3e-07]
[1733266836241,1.03947227,96249.0,96248.0,9.3e-07]
[1733266836515,1.03547227,96249.0,96248.0,9.3e-07]
[1733266836768,1.13830373,96249.0,96248.0,9.3e-07]
[1733266837021,1.14730373,96249.0,96248.0,9.3e-07]
[1733266837259,0.207856,96220.0,96219.0,0.0017258]
[1733266837549,0.21562718,96220.0,96219.0,0.0017258]
[1733266837794,0.23379066,96220.0,96219.0,0.0017258]
[1733266838049,0.61910325,96220.0,96219.0,0.0017258]
[1733266838280,0.96910325,96220.0,96219.0,0.0017258]
[1733266838801,0.96910325,96220.0,96219.0,0.00190233]
[1733266839754,0.97010325,96220.0,96219.0,0.00190233]
[1733266839990,0.97310325,96220.0,96219.0,0.00190233]
[1733266840222,1.07593471,96220.0,96219.0,0.00190233]
[1733266840448,1.08493471,96220.0,96219.0,0.00190233]
[1733266840739,1.07593471,96220.0,96219.0,0.00190233]
[1733266841219,1.08093471,96220.0,96219.0,0.00190233]
[1733266841706,1.13133471,96220.0,96219.0,0.00190233]
[1733266842167,1.13133471,96220.0,96217.0,9.3e-07]
[1733266842168,0.4,96218.0,96217.0,9.3e-07]
[1733266842401,0.65471259,96218.0,96217.0,9.3e-07]
[1733266842631,0.67287607,96218.0,96217.0,9.3e-07]
[1733266843877,0.68187607,96218.0,96217.0,9.3e-07]
[1733266845283,0.68687607,96218.0,96217.0,9.3e-07]
[1733266846032,0.78970753,96218.0,96217.0,9.3e-07]
[1733266847237,0.890987,96206.0,96205.0,5.3e-07]
[1733266847491,0.757923,96189.0,96188.0,8.3e-07]
[1733266847744,0.207962,96171.0,96162.0,0.082026]
[1733266848217,0.22612548,96171.0,96162.0,0.082026]
[1733266848884,0.22629614,96171.0,96162.0,0.082026]
[1733266849107,0.22629614,96171.0,96170.0,0.024]
[1733266849582,0.22729614,96171.0,96170.0,0.024]
[1733266851522,0.20913266,96171.0,96170.0,0.1013]
[1733266853183,0.20913266,96171.0,96170.0,0.1030272]
[1733266853460,0.22847613,96171.0,96170.0,0.0257272]
[1733266858734,0.22847613,96171.0,96170.0,0.1018272]
[1733266858735,0.02051413,96171.0,96170.0,0.1018272]
[1733266858956,0.00117066,96171.0,96170.0,0.1501272]
[1733266859383,0.207959,96173.0,96170.0,0.1501272]
[1733266859384,0.207955,96175.0,96170.0,0.16513992]
[1733266859593,0.207955,96175.0,96170.0,0.15071558]
[1733266859825,0.14291548,96174.0,96170.0,0.15071558]
[1733266860054,0.207956,96174.0,96170.0,0.15071558]
[1733266860519,0.415912,96174.0,96170.0,0.15071558]
[1733266860984,0.207956,96174.0,96170.0,0.14671558]
[1733266861209,0.207956,96174.0,96171.0,0.01467156]
[1733266861450,0.207945,96179.0,96172.0,0.0812]
[1733266861660,0.2,96207.0,96172.0,0.0812]
[1733266861661,0.001,96175.0,96172.0,0.0812]
[1733266861870,0.207949,96178.0,96172.0,0.0812]
[1733266862083,0.001,96174.0,96173.0,0.02711997]
[1733266862518,0.415899,96177.0,96173.0,0.02711997]
[1733266862730,0.207949,96177.0,96173.0,0.02711997]
[1733266863168,0.207949,96177.0,96172.0,0.0852]
[1733266863596,0.207958,96173.0,96172.0,0.0852]
[1733266864023,0.207958,96173.0,96172.0,0.0812]
[1733266865192,0.208958,96173.0,96172.0,0.0862]
[1733266865413,0.209958,96173.0,96172.0,0.0862]
[1733266865623,0.002,96173.0,96172.0,0.0862]
[1733266865850,0.209958,96173.0,96172.0,0.0862]
[1733266866101,0.002,96173.0,96172.0,0.10188156]
[1733266866801,0.207958,96174.0,96172.0,0.10188156]
[1733266867702,0.207949,96177.0,96172.0,0.10188156]
[1733266867939,0.207958,96174.0,96172.0,0.09688156]
[1733266868151,0.207958,96174.0,96172.0,0.10088156]
[1733266868366,0.207958,96174.0,96173.0,0.01714971]
[1733266868800,0.001,96174.0,96173.0,0.01714971]
[1733266869449,0.207952,96176.0,96173.0,0.01714971]
[1733266869867,0.001,96174.0,96173.0,0.01714971]
[1733266870553,0.207958,96173.0,96172.0,0.0852]
[1733266870989,0.187958,96173.0,96172.0,0.0812]
[1733266872284,0.187958,96173.0,96172.0,0.0852]
[1733266872498,0.188958,96173.0,96172.0,0.0852]
[1733266872836,0.188958,96173.0,96172.0,0.10078156]
[1733266872922,0.188958,96173.0,96172.0,0.20549415]
[1733266872923,0.001,96173.0,96172.0,0.20549415]
[1733266873576,0.208958,96173.0,96172.0,0.20549415]
[1733266874025,0.001,96173.0,96172.0,0.20549415]
[1733266874256,0.16212434,96177.0,96172.0,0.20549415]
[1733266874489,0.0008637,96178.0,96173.0,0.21096381]
[1733266874730,0.0008637,96178.0,96176.0,0.207952]
[1733266874974,0.0008637,96178.0,96177.0,0.22655258]
[1733266875223,0.01962096,96212.0,96177.0,0.22655258]
[1733266875224,0.20788,96209.0,96188.0,0.207925]
[1733266875469,0.207902,96200.0,96189.0,0.27063882]
[1733266875713,0.207905,96198.0,96190.0,0.0769]
[1733266875945,0.415827,96194.0,96191.0,0.10471259]
[1733266876188,0.415827,96194.0,96190.0,0.0769]
[1733266876427,0.207917,96192.0,96190.0,0.0769]
[1733266876918,8.46e-05,96191.0,96190.0,0.0769]
[1733266877158,0.00192462,96191.0,96181.0,0.09283905]
[1733266877403,0.00192462,96191.0,96179.0,0.0488]
[1733266877404,0.415878,96182.0,96179.0,0.0488]
[1733266877647,0.207939,96182.0,96179.0,0.0488]
[1733266877935,0.207939,96182.0,96180.0,0.0786]
[1733266878175,0.415878,96182.0,96180.0,0.0786]
[1733266878910,0.416878,96182.0,96180.0,0.0786]
[1733266879135,0.208939,96182.0,96180.0,0.0786]
[1733266879371,0.001,96182.0,96181.0,0.10471259]
[1733266879603,0.001,96182.0,96181.0,0.19755164]
[1733266880620,0.001,96182.0,96181.0,0.10471259]
[1733266880853,0.209939,96182.0,96181.0,0.11371259]
[1733266881120,0.208939,96182.0,96181.0,0.11371259]
[1733266881347,0.209939,96182.0,96181.0,0.015]